Cogmind - Beta 13 @@@ ROGUE MODE // 2024.04.13 @ 15:41:31 Player: Sage Result: Self-destructed Performance ------------- Evolutions (2) 1000 Regions Visited (4) 800 Robots Destroyed (26) 130 Value Destroyed (692) 692 Prototype IDs (7) 140 Alien Tech Used (0) 0 Bonus (0) 0 TOTAL SCORE: 2762 Bonus ------- None Cogmind --------- Core Integrity 550/550 Matter 222/300 Energy 17/125 System Corruption 0% Temperature Cool (32) Movement Flying (34) Location -8/Materials Parts ------- > --- POWER (1) -------- Light Ion Engine > --- PROPULSION (4) --- Flight Unit VTOL Module > --- UTILITY (4) ------ Small Storage Unit Advanced Weight Redist. System Signal Interpreter Hacking Suite > --- WEAPON (2) ------- Pulse Rifle > --- INVENTORY (8) ---- Experimental Sensor Array ECM Suite Autogun Grenade Launcher Peak State ------------ > --- POWER ------------ Light Nuclear Core > --- PROPULSION ------- Flight Unit Flight Unit > --- UTILITY ---------- Weight Redist. System Advanced Visual Processing Unit ECM Suite Hacking Suite > --- WEAPON ----------- Pulse Rifle Autogun > --- INVENTORY -------- Light Ion Engine Small Storage Unit Experimental Sensor Array Signal Interpreter Grenade Launcher [Rating: 20] Favorites ----------- Power Light Ion Engine Engine Light Ion Engine Power Core Light Nuclear Core Propulsion Flight Unit Leg Aluminum Leg Flight Unit Flight Unit Utility Hacking Suite Device ECM Suite Storage Small Storage Unit Processor Signal Interpreter Hackware Hacking Suite Protection Light Armor Plating Weapon Assault Rifle Energy Gun Small Laser Ballistic Gun Assault Rifle Launcher Grenade Launcher Build | -11 -10 -10 -9 -8 ------- Run | Yrd Mat Min Mat Mat Slots Evolved 4 | . . . 2 2 Power . | . . . . . Propulsion 2 | . . . 1 1 Utility 2 | . . . 1 1 Weapon . | . . . . . Parts Attached 38 | 6 15 1 7 9 Power 6 | 1 1 . 2 2 Engine 5 | 1 1 . 1 2 Core 1 | . . . 1 . Reactor . | . . . . . Propulsion 8 | 2 4 . 1 1 Treads . | . . . . . Leg 3 | 2 1 . . . Wheel . | . . . . . Hover . | . . . . . Flight 5 | . 3 . 1 1 Utility 12 | 1 4 . 2 5 Device 5 | . 1 . 2 2 Storage 2 | 1 . . . 1 Processor 3 | . 1 . . 2 Hackware 1 | . 1 . . . Protection 1 | . 1 . . . Artifact . | . . . . . Weapon 12 | 2 6 1 2 1 Energy Gun 2 | . 1 . . 1 Energy Cannon . | . . . . . Ballistic Gun 7 | 2 3 . 2 . Ballistic Cannon . | . . . . . Launcher 3 | . 2 1 . . Special Weapon . | . . . . . Impact Weapon . | . . . . . Slashing Weapon . | . . . . . Piercing Weapon . | . . . . . Special Melee Weapon . | . . . . . Unidentified Prototypes . | . . . . . Parts Lost 5 | . 1 . 2 2 Power 3 | . 1 . 1 1 Propulsion 2 | . . . 1 1 Utility . | . . . . . Weapon . | . . . . . Highest Loss Streak 2 | . 1 . 2 2 To Critical Strikes . | . . . . . Average Slot Usage (%) 85 | . 89 85 87 69 Engine 8 | . 12 14 2 5 Core 1 | . . . 7 1 Leg 10 | . 18 . . . Flight 14 | . 9 28 24 14 Device 7 | . 2 . 19 12 Storage 6 | . 9 . . 4 Processor 2 | . 1 . . 7 Hackware 6 | . 2 14 11 9 Protection 2 | . 5 . . . Energy Gun 6 | . 5 14 6 8 Ballistic Gun 14 | . 20 . 8 5 Launcher 2 | . . 14 6 . Naked Turns . | . . . . . Heaviest Build 15 | 13 15 7 13 13 Greatest Support 20 | 20 20 8 14 17 Greatest Overweight (x) 3 | 1 3 . . 1 Average Overweight (x) . | . . . . . Largest Inventory Capacity 8 | 8 8 5 5 8 Average Capacity 6 | 6 7 5 5 6 Most Carried 8 | 2 8 5 5 5 Average Carried 4 | . 4 4 3 4 Final Capacity 8 | 8 5 5 5 8 Final Carried 5 | 1 5 5 5 4 Class Distribution -------------------- 89% | Mutant 10% | Scavenger-Mutant Dominant Class ---------------- Mutant | -10/Materials Mutant | -10/Mines Mutant | -9/Materials Scavenger-Mutant | -8/Materials Resources | -11 -10 -10 -9 -8 ----------- Run | Yrd Mat Min Mat Mat Matter Collected 931 | 188 499 10 203 31 Remotely . | . . . . . Salvage Created 775 | . 391 14 283 87 Parts 51 | . 28 2 16 5 Haulers Intercepted . | . . . . . Recyclers Shooed . | . . . . . Parts Field Recycled . | . . . . . Retrieved Matter . | . . . . . Parts Self-Destructed . | . . . . . Prevented . | . . . . . Kills | -11 -10 -10 -9 -8 ------- Run | Yrd Mat Min Mat Mat Combat Hostiles Destroyed 18 | . 9 3 5 1 Guns 13 | . 8 1 3 1 AOE 5 | . 1 2 2 . Classes Destroyed 8 | . 6 . 1 1 Worker 1 | . 1 . . . Recycler 1 | . . . 1 . Mechanic 1 | . 1 . . . Operator 2 | . 1 . 1 . Watcher 3 | . 1 . 1 1 Swarmer 4 | . 1 3 . . Grunt 13 | . 8 . 5 . Sentry 1 | . . . . 1 Best Kill Streak 6 | . 6 3 4 1 Combat Bots Only 3 | . 2 3 3 1 Max Kills in Single Turn 2 | . 2 2 2 1 Gunslinging . | . . . . . Exploded 2 | . 1 2 1 . Melee . | . . . . . Uniques/NPCs Destroyed . | . . . . . Combat | -11 -10 -10 -9 -8 -------- Run | Yrd Mat Min Mat Mat Hostile Shots Fired 112 | . 70 5 22 15 Missed 26 | . 13 2 4 7 Damage Taken 1015 | . 687 20 214 94 Core 183 | . 116 . 67 . Absorbed by Shields . | . . . . . Regen/Repaired (Parts) 16 | . 16 . . . Core Remaining (%) 78 | 100 . 53 83 . Volleys Fired 87 | 2 54 3 17 11 Largest 2 | 2 2 2 2 2 Hottest 86 | 40 70 70 70 86 Shots Fired 158 | 4 102 6 30 16 Gun 146 | 4 96 3 27 16 Cannon . | . . . . . Launcher 12 | . 6 3 3 . Special . | . . . . . Kinetic 103 | 4 74 . 20 5 Thermal 43 | . 22 3 7 11 Explosive 12 | . 6 3 3 . Electromagnetic . | . . . . . Robot Hit Streak 22 | 1 22 1 8 2 Robot Miss Streak 7 | 2 7 6 2 4 Penetration Max . | . . . . . Secondary Targets 1 | . 1 . . . Max Gunslinging Chain 1 | . 1 . . . Shots Hit Robots 96 | 2 64 1 21 8 Core Hits 48 | 1 25 4 14 4 Critical Kills . | . . . . . Critical Parts Destroyed . | . . . . . Critical Strikes . | . . . . . Melee Attacks . | . . . . . Impact . | . . . . . Slashing . | . . . . . Piercing . | . . . . . Sneak Attacks . | . . . . . Combat Hostiles . | . . . . . Follow-up Attacks . | . . . . . Damage Inflicted 1819 | 21 921 215 535 127 Guns 1193 | 21 753 12 280 127 Cannons . | . . . . . Explosions 626 | . 168 203 255 . Melee . | . . . . . Ramming . | . . . . . Kinetic 893 | 21 619 . 223 30 Thermal 335 | . 134 47 57 97 Explosive 591 | . 168 168 255 . Electromagnetic . | . . . . . Impact . | . . . . . Slashing . | . . . . . Piercing . | . . . . . Highest Corruption 2 | . . . 2 . Average Corruption 1 | . . . 1 . Corruption Purged . | . . . . . Corruption Blocked . | . . . . . Effects 2 | . . . 2 . Matter Fused 2 | . . . 2 . Overload Shots . | . . . . . Overflow Damage 34 | . . 34 . . Projectiles . | . . . . . Explosions 34 | . . 34 . . Melee . | . . . . . Knockbacks . | . . . . . Impact . | . . . . . Kinetic . | . . . . . Secondary . | . . . . . Self-Inflicted Damage . | . . . . . Shots . | . . . . . Rammed . | . . . . . Targets Rammed . | . . . . . Kicked . | . . . . . Crushed . | . . . . . Highest Temperature 130 | . 130 47 78 36 Average Temperature 30 | . 34 24 31 17 Received Heat Transfer 474 | . 303 . 117 54 Siege Activations . | . . . . . Robots Corrupted . | . . . . . Combat Hostiles . | . . . . . Parts Fried . | . . . . . Impact Corruptions . | . . . . . Robots Melted . | . . . . . Combat Hostiles . | . . . . . Parts Melted . | . . . . . Heat Transferred 746 | . 324 75 125 222 Parts Sabotaged . | . . . . . Parts Stolen . | . . . . . Parts Stripped . | . . . . . Power Chain Reactions . | . . . . . Alert | -11 -10 -10 -9 -8 ------- Run | Yrd Mat Min Mat Mat Peak Influence 317 | . 239 151 268 317 Initial 113 | . . 93 58 113 Average 128 | . 97 103 183 200 Maximum Alert Level 1 | . 1 . 1 1 Low Security (%) 80 | 100 91 100 67 52 Level 1 19 | . 8 . 32 47 Level 2 . | . . . . . Level 3 . | . . . . . Level 4 . | . . . . . Level 5 . | . . . . . High Security . | . . . . . Max Security . | . . . . . Squads Dispatched 7 | . 3 . 2 2 Investigation 2 | . . . 2 . Extermination . | . . . . . Reinforcement 5 | . 3 . . 2 Assault . | . . . . . Garrison . | . . . . . Intercept . | . . . . . Searches Triggered . | . . . . . Construction Impeded . | . . . . . Haulers Reinforced . | . . . . . Active Scanning Responses . | . . . . . Cargo Convoy Interrupts . | . . . . . Stealth | -11 -10 -10 -9 -8 --------- Run | Yrd Mat Min Mat Mat Distress Signals 2 | . . . 1 1 Communications Jammed . | . . . . . Distress Signals . | . . . . . Times Spotted 55 | . 23 8 9 15 Peak Tracking Total 20 | . 6 20 3 6 Tactical Retreats 9 | . 2 1 2 4 Traps | -11 -10 -10 -9 -8 ------- Run | Yrd Mat Min Mat Mat Traps Triggered 2 | . 1 . 1 . Indirectly . | . . . . . Trap Hack Attempts . | . . . . . Triggered . | . . . . . Disarmed . | . . . . . Reprogrammed . | . . . . . Reused . | . . . . . Traps Extracted . | . . . . . Installed . | . . . . . Triggered . | . . . . . Machines | -11 -10 -10 -9 -8 ---------- Run | Yrd Mat Min Mat Mat Machines Disabled 3 | . 2 1 . . Max in Single Turn 2 | . 2 1 . . Machines Repaired . | . . . . . Machines Dismantled . | . . . . . Machines Sabotaged . | . . . . . Overloaded Fab Kills . | . . . . . Hacking | -11 -10 -10 -9 -8 --------- Run | Yrd Mat Min Mat Mat Machines Accessed 12 | . 7 . 4 1 Terminals 8 | . 5 . 2 1 Fabricators . | . . . . . Repair Stations 1 | . 1 . . . Recycling Units 1 | . 1 . . . Scanalyzers 2 | . . . 2 . Garrison Access . | . . . . . Total Hacks 46 | . 27 . 15 4 Successful 22 | . 11 . 9 2 Failed 24 | . 16 . 6 2 Catastrophic 3 | . 2 . . 1 Database Lockouts . | . . . . . Manual 23 | . 14 . 5 4 Terminals 28 | . 19 . 5 4 Fabricators . | . . . . . Repair Stations 7 | . 7 . . . Recycling Units 1 | . 1 . . . Scanalyzers 10 | . . . 10 . Garrison Access . | . . . . . Terminal Hacks 12 | . 7 . 3 2 Robot Analysis 1 | . 1 . . . Prototype ID Bank 4 | . 2 . 2 . Branch Access Points 1 | . 1 . . . Scanalyzer Index 1 | . . . 1 . Surveillance Status 1 | . 1 . . . Coupling Status 1 | . 1 . . . Recall Investigation 1 | . . . . 1 Recall Reinforcements 1 | . . . . 1 Zone Layout 1 | . 1 . . . Fabricator Hacks . | . . . . . Repair Station Hacks 3 | . 3 . . . Scan Component 1 | . 1 . . . Repair 1 | . 1 . . . Refit 1 | . 1 . . . Recycling Unit Hacks . | . . . . . Scanalyzer 6 | . . . 6 . Insert Component 2 | . . . 2 . Analyze 4 | . . . 4 . Garrison Access Hacks . | . . . . . Unauthorized Hacks 1 | . 1 . . . Terminals . | . . . . . Fabricators . | . . . . . Repair Stations . | . . . . . Recycling Units 1 | . 1 . . . Reject 1 | . 1 . . . Scanalyzers . | . . . . . Garrison Access . | . . . . . Data Cores Recovered . | . . . . . Used . | . . . . . Hacking Detections 11 | . 6 . 4 1 Full Trace Events 4 | . 2 . 2 . Feedback Events 1 | . . . 1 . Corruption 1 | . . . 1 . Feedback Blocked . | . . . . . Robot Schematics Acquired . | . . . . . Robots Built . | . . . . . Authchips . | . . . . . Time . | . . . . . Total Robot Build Rating . | . . . . . Part Schematics Acquired 1 | . . . 1 . Parts Built . | . . . . . Authchips . | . . . . . Time . | . . . . . Total Part Build Rating . | . . . . . Parts Repaired 1 | . 1 . . . Time 26 | . 26 . . . Parts Recycled . | . . . . . Recycled Matter . | . . . . . Retrieved Matter . | . . . . . Retrieved Components . | . . . . . Parts Scanalyzed 1 | . . . 1 . Part Schematics Acquired 1 | . . . 1 . Parts Damaged 1 | . . . 1 . Bothacking | -11 -10 -10 -9 -8 ------------ Run | Yrd Mat Min Mat Mat Used RIF Installer . | . . . . . Robots Hacked . | . . . . . Non-combat . | . . . . . Combat . | . . . . . Robot Hacks Applied . | . . . . . Relay Couplers Released . | . . . . . Fabnet Peak Effective % . | . . . . . Robots Rewired . | . . . . . Allies Hacked . | . . . . . Hacks Repelled . | . . . . . Allies | -11 -10 -10 -9 -8 -------- Run | Yrd Mat Min Mat Mat Total Allies 2 | . . 2 . . Largest Group 2 | . . 2 . . Highest-Rated Group 46 | . . 46 . . Highest-Rated Ally 31 | . . 31 . . Total Orders . | . . . . . Ally Attacks 5 | . . 5 . . Total Damage 20 | . . 20 . . Kills 1 | . . 1 . . Allies Corrupted . | . . . . . Allies Melted . | . . . . . Intel | -11 -10 -10 -9 -8 ------- Run | Yrd Mat Min Mat Mat Robot Analysis Total 1 | . 1 . . . Derelict Logs Recovered . | . . . . . Drone Launches . | . . . . . Drone Recoveries . | . . . . . Exploration | -11 -10 -10 -9 -8 ------------- Run | Yrd Mat Min Mat Mat Turns Passed 1198 | 59 632 64 230 213 Spaces Moved 1356 | 35 510 135 365 311 Core 2 | 2 . . . . Treads . | . . . . . Legs 253 | 33 220 . . . Wheels . | . . . . . Hover . | . . . . . Flight 1101 | . 290 135 365 311 Fastest Speed 34 | 50 37 37 34 34 Average Speed 52 | 126 73 37 36 36 Slowest Speed 280 | 190 280 37 37 120 Overloaded Moves . | . . . . . Propulsion Burnouts . | . . . . . Robots Hopped 6 | . 1 . 3 2 Cave-ins Triggered . | . . . . . Exploration Rate (%) 35 | 3 69 46 23 34 Regions Visited 4 Branch Regions 1 Pre-discovered Areas . | . . . . . Known Exits Taken 1 | . 1 . . . Unknown Exits Taken 3 | 1 . 1 1 . Scrap Searched 1 | . . 1 . . Spaces Dug . | . . . . . Terrain Destroyed 49 | . 1 18 30 . Melee . | . . . . . Projectile . | . . . . . AOE 49 | . 1 18 30 . Terrain Rammed . | . . . . . Walls Destroyed . | . . . . . Machines Disabled . | . . . . . Actions | -11 -10 -10 -9 -8 --------- Run | Yrd Mat Min Mat Mat Total 1687 | 44 671 144 434 394 Wait 150 | . 52 1 39 58 Move 1340 | 34 507 134 358 307 Hop 6 | . 1 . 3 2 Pick Up 26 | 2 17 1 6 . Fast Attach 17 | 5 8 . . 4 Attach 21 | 1 7 1 7 5 Detach 15 | . 6 2 2 5 Swap . | . . . . . Drop 25 | . 19 2 2 2 Fire 87 | 2 54 3 17 11 Melee . | . . . . . Ram . | . . . . . Kick . | . . . . . Crush . | . . . . . Escape Stasis . | . . . . . Rewire . | . . . . . Trap . | . . . . . Miscellaneous . | . . . . . Route ------- -11/Scrapyard -10/Materials (discovered 2 exits: *Mat / *Min) -10/Mines -9/Materials -8/Materials (discovered 1 exit: *Fac) History --------- Turn | Location | Event 8 | -11/Scrapyard | Discovered new exit (range 16) 60 | -11/Scrapyard | Entered Materials 300 | -10/Materials | Build established: Mutant 511 | -10/Materials | Discovered new exit (range 14) 583 | -10/Materials | Identified exit to Mines 636 | -10/Materials | Repaired Flight Unit 692 | -10/Materials | Entered Mines 703 | -10/Mines | Found a damaged Exp. Sensor Array with a note attached 704 | -10/Mines | Found Prototype Device 723 | -10/Mines | Assembled infested the area 728 | -10/Mines | Assisted by a Guerilla fighting off Assembled 739 | -10/Mines | Discovered new exit (range 7) 756 | -10/Mines | Entered Materials 756 | -9/Materials | Evolved 2 slots: Propulsion x1, Utility x1 764 | -9/Materials | Identified Exp. Sensor Array 949 | -9/Materials | Discovered new exit (range 3) 986 | -9/Materials | Entered another Materials area 986 | -8/Materials | Evolved 2 slots: Propulsion x1, Utility x1 1109 | -8/Materials | Discovered new exit (range 6) 1127 | -8/Materials | Identified exit to Factory 1199 | -8/Materials | Self-destructed Last Messages --------------- 01027_ K-01 Serf collects debris. 01084_ W-25 Informer destroyed. 01085_ Acquired 31 matter. 01087_ Dropped Weight Redist. System. 01087_ R-06 Scavenger collects Imp. Hover Unit. 01088_ Acquired Adv. Weight Redist. System. 01097_ K-01 Serf collects debris. 01098_ Acquired VTOL Module. 01102_ K-01 Serf collects debris. 01102_ Critical hit (Burn: +37). 01104_ Discarded Adv. Visual Processing Unit. 01108_ K-01 Serf collects debris. 01109_ EXIT=FOUND 01127_ W-25 Informer sends out distress signal. 01127_ K-01 Serf collects debris. 01127_ EXIT=IDENTIFIED: FACTORY 01130_ T-07 Excavator is excavating. 01144_ O-16 Technician: "IFF HANDSHAKE FAILED. SECURING TERMINAL." 01146_ ALERT: Hostiles spotted, dispatching reinforcements to Terminal M006. Map ----- +----------------------------------------------------+ | ????????????????????????????????????? | | ????????????????????????????????????? | | ????????????????????????????????????? | | ????????????????????????????????????? | | ????????????????????????????????????? | | ????????????????????????????????????? | | ????????????????????????????????????? | | ????????????????????????????????????? | | ????????????????????????????????????? | | ????????????????????????????????????? | | ????????? ??????????????????????????? | | ????????? ??????????????????????????? | | ????????? ??????????????????????????? | | ????????? ??????????????????????????? | | ????????? ??????????????????????????? | | ????????? ??????????????????????????? | | ????????? ????????????#?????????????? | | ????????# #?????????? #?????????????? | | ????????# #?????????? #?????????????? | | ????????# #????????? #?????????????? | | ????????# #????????? +?????????????? | | ????????# #???????? #?????????????? | | ?######?# #???????? ##????????????? | | ?# # #??????? #????????????? | | ?# """ # ######## #????????????? | | ?# """ + s@s s T #????????????? | | ?# """ # ######## #????????????? | | ?# # #??????? #????????????? | | ?# ?# #????????# ###????????????? | | ?######?# #????????? #??????????????? | | ????????# #??????????#??????????????? | | ????????# #?????????????????????????? | | ????????# #?????????????????????????? | | ????????# #???????????????##????????? | | ?########+#??????????????? ????????? | | ?# #??????????????? #????????? | | ?#= #??????????????? #????????? | | ?# ########???##+?# #????????? | | ?# # # ??# #????????? | | ?# # #""" ]?## ##???????? | | ?# # "" / #""" ??# ????????? | | ?# # "T #""" ??+ #????????? | | ?# # "" #"""???# #????????? | | ?# #? ]? ???# #????##### | | ?########+####+####+##### ###### ! | | ??????# # | | ??????# + "" | | ??????########################### "" | | ????????????????????????????????# "" | | ????????????????????????????????##### | +----------------------------------------------------+ Best States ------------- Heat Dissipation 31 Energy Generation 14 Energy Capacity 250 Matter Stores 300 Matter Capacity 300 Sight Range 20 Terrain Scan Density 10 ECM Strength 1 Additional Mass Support 9 Armor Coverage 150 Evasion (%) 63 Offensive Hacking 10 Item Schematics ----------------- Exp. Sensor Array | -9/Materials | Scanalyzed Robot Schematics ------------------ None Fabricated ------------ Nothing Alien Tech Used ----------------- None Achievements -------------- GoHome() Hunted Safety First Challenges ------------ None Game ------ Seed ActiveIonChronowheel Manual? 0 Play Time 01:10:31 Cumulative 10.1 hours Start 2024.04.12 @ 22:32:56 End 2024.04.13 @ 15:41:31 Sessions 4 Manual Loads 0 Difficulty Rogue Special Mode None Game No. 7 Rogue 7 Adventurer 0 Explorer 0 Win Type - Total 0 Types 0/0/0/0/0/0/0/0/0 Lore% 8 Gallery% 13 Achievement% 16 Wizard Run 0 Options --------- Layout 0 ASCII 0 Keyboard 0 Movement Mouse Keybinds 0 Fullscreen 2 Font 18/SmallcapsGlow Map View 76x50 Zoom Use 0% Tactical HUD 1 Map Filters NONE Filters NONE Steam 1 RUN: b942a0b0-4bc1-40cf-87fe-70ee9d178502